[Event "Titled Tuesday Blitz January 31 Late 2023"]
[White "Moroni, Luca Jr"]
[Black "Deac, Bogdan-Daniel"]
[WhiteFideId "865834"]
[BlackFideId "1226380"]
[WhiteElo "2535"]
[BlackElo "2700"]
[Result "0-1"]
[Round "04"]
[TimeControl "180+2"]
[Date "2023.01.31"]
[WhiteClock "0:00:06"]
[BlackClock "0:00:06"]

1. d4 {[%clk 0:03:00]}  d5 {[%clk 0:03:00]} 2. c4 {[%clk 0:03:00]}  e6 {[%clk 0:03:00]} 3. Nc3 {[%clk 0:02:59]}  a6 {[%clk 0:03:00]} 4. cxd5 {[%clk 0:02:59]}  exd5 {[%clk 0:03:01]} 5. Nf3 {[%clk 0:02:58]}  Nf6 {[%clk 0:03:01]} 6. Bg5 {[%clk 0:02:58]}  Be6 {[%clk 0:03:01]} 7. e3 {[%clk 0:02:58]}  Nbd7 {[%clk 0:03:02]} 8. h3 {[%clk 0:02:57]}  h6 {[%clk 0:03:01]} 9. Bf4 {[%clk 0:02:57]}  Bf5 {[%clk 0:03:01]} 10. Bd3 {[%clk 0:02:56]}  Bxd3 {[%clk 0:03:00]} 11. Qxd3 {[%clk 0:02:57]}  Be7 {[%clk 0:03:00]} 12. O-O {[%clk 0:02:56]}  Nf8 {[%clk 0:02:51]} 13. Rfb1 {[%clk 0:02:39]}  Ne6 {[%clk 0:02:46]} 14. Be5 {[%clk 0:02:37]}  c6 {[%clk 0:02:40]} 15. b4 {[%clk 0:02:31]}  Nd7 {[%clk 0:01:59]} 16. a4 {[%clk 0:02:29]}  O-O {[%clk 0:01:56]} 17. b5 {[%clk 0:02:24]}  axb5 {[%clk 0:01:23]} 18. axb5 {[%clk 0:02:23]}  Rxa1 {[%clk 0:01:24]} 19. Rxa1 {[%clk 0:02:23]}  Nxe5 {[%clk 0:01:24]} 20. Nxe5 {[%clk 0:02:20]}  Bd6 {[%clk 0:01:24]} 21. Nf3 {[%clk 0:02:08]}  Qc7 {[%clk 0:01:09]} 22. bxc6 {[%clk 0:02:06]}  bxc6 {[%clk 0:01:10]} 23. Rc1 {[%clk 0:01:59]}  Qb7 {[%clk 0:01:06]} 24. Qb1 {[%clk 0:01:51]}  Qa8 {[%clk 0:00:49]} 25. Qc2 {[%clk 0:01:42]}  Rb8 {[%clk 0:00:46]} 26. Rb1 {[%clk 0:01:27]}  g6 {[%clk 0:00:39]} 27. g3 {[%clk 0:01:13]}  h5 {[%clk 0:00:30]} 28. Kg2 {[%clk 0:01:12]}  Kg7 {[%clk 0:00:29]} 29. Rxb8 {[%clk 0:01:06]}  Qxb8 {[%clk 0:00:29]} 30. Ne2 {[%clk 0:01:06]}  Qb5 {[%clk 0:00:25]} 31. Nc1 {[%clk 0:00:59]}  c5 {[%clk 0:00:19]} 32. dxc5 {[%clk 0:01:00]}  Bxc5 {[%clk 0:00:19]} 33. Nb3 {[%clk 0:00:57]}  Be7 {[%clk 0:00:19]} 34. Nbd4 {[%clk 0:00:54]}  Nxd4 {[%clk 0:00:19]} 35. Nxd4 {[%clk 0:00:55]}  Qc4 {[%clk 0:00:19]} 36. Qd1 {[%clk 0:00:26]}  Bf6 {[%clk 0:00:18]} 37. h4 {[%clk 0:00:20]}  Bxd4 {[%clk 0:00:15]} 38. Qxd4+ {[%clk 0:00:21]}  Qxd4 {[%clk 0:00:15]} 39. exd4 {[%clk 0:00:22]}  Kf6 {[%clk 0:00:14]} 40. Kf1 {[%clk 0:00:07]}  Kf5 {[%clk 0:00:13]} 41. f3 {[%clk 0:00:07]}  g5 {[%clk 0:00:08]} 42. hxg5 {[%clk 0:00:06]}  Kxg5 {[%clk 0:00:09]} 43. Kg2 {[%clk 0:00:06]}  h4 {[%clk 0:00:08]} 44. Kh3 {[%clk 0:00:05]}  hxg3 {[%clk 0:00:08]} 45. Kxg3 {[%clk 0:00:06]}  Kf5 {[%clk 0:00:08]} 46. Kg2 {[%clk 0:00:06]}  Kf4 {[%clk 0:00:08]} 47. Kf2 {[%clk 0:00:06]}  f6 {[%clk 0:00:06]} 48. Ke2 {[%clk 0:00:05]}  Kg3 {[%clk 0:00:06]} 49. Ke3 {[%clk 0:00:06]}  f5 {[%clk 0:00:06]} 0-1


[Site "https://www.chess.com"]

[Event "Titled Tuesday Blitz January 31 Late 2023"]
[White "Tang, Andrew"]
[Black "Boruchovsky, Avital"]
[WhiteFideId "2059630"]
[BlackFideId "2800055"]
[WhiteElo "2523"]
[BlackElo "2539"]
[Result "0-1"]
[Round "04"]
[TimeControl "180+2"]
[Date "2023.01.31"]
[WhiteClock "0:00:01"]
[BlackClock "0:00:49"]

1. d4 {[%clk 0:03:00]}  Nf6 {[%clk 0:02:59]} 2. Nf3 {[%clk 0:02:53]}  b5 {[%clk 0:02:54]} 3. Bf4 {[%clk 0:02:50]}  Bb7 {[%clk 0:02:53]} 4. e3 {[%clk 0:02:50]}  a6 {[%clk 0:02:46]} 5. c4 {[%clk 0:02:42]}  bxc4 {[%clk 0:02:46]} 6. Bxc4 {[%clk 0:02:43]}  e6 {[%clk 0:02:42]} 7. Qb3 {[%clk 0:02:27]}  Qc8 {[%clk 0:02:41]} 8. Nc3 {[%clk 0:02:24]}  Nc6 {[%clk 0:02:29]} 9. Be2 {[%clk 0:02:09]}  Be7 {[%clk 0:02:27]} 10. h3 {[%clk 0:02:04]}  O-O {[%clk 0:02:26]} 11. O-O {[%clk 0:02:00]}  d6 {[%clk 0:02:24]} 12. Rfc1 {[%clk 0:01:51]}  Qd7 {[%clk 0:02:20]} 13. a3 {[%clk 0:01:17]}  h6 {[%clk 0:02:11]} 14. e4 {[%clk 0:01:09]}  Rab8 {[%clk 0:02:02]} 15. Qc2 {[%clk 0:01:08]}  Nxd4 {[%clk 0:01:58]} 16. Nxd4 {[%clk 0:01:06]}  e5 {[%clk 0:01:59]} 17. Bxe5 {[%clk 0:00:45]}  dxe5 {[%clk 0:02:00]} 18. Nf5 {[%clk 0:00:46]}  Bc5 {[%clk 0:01:45]} 19. Bc4 {[%clk 0:00:42]}  Bd4 {[%clk 0:01:37]} 20. Rd1 {[%clk 0:00:39]}  c5 {[%clk 0:01:27]} 21. Qe2 {[%clk 0:00:39]}  Kh7 {[%clk 0:01:16]} 22. Rd3 {[%clk 0:00:34]}  Bxe4 {[%clk 0:01:08]} 23. Nxe4 {[%clk 0:00:26]}  Qxf5 {[%clk 0:01:06]} 24. Rf3 {[%clk 0:00:22]}  Qxe4 {[%clk 0:00:53]} 25. Bd3 {[%clk 0:00:19]}  Qxd3 {[%clk 0:00:54]} 26. Rxd3 {[%clk 0:00:03]}  Rxb2 {[%clk 0:00:53]} 27. Qd1 {[%clk 0:00:01]}  e4 {[%clk 0:00:49]} 0-1


[Site "https://www.chess.com"]

[Event "Titled Tuesday Blitz January 31 Late 2023"]
[White "Dominguez Perez, Leinier"]
[Black "Yanchenko, Roman"]
[WhiteFideId "3503240"]
[BlackFideId "4137329"]
[WhiteElo "2739"]
[BlackElo "2466"]
[Result "1-0"]
[Round "04"]
[TimeControl "180+2"]
[Date "2023.01.31"]
[WhiteClock "0:00:07"]
[BlackClock "0:00:03"]

1. d4 {[%clk 0:03:00]}  d5 {[%clk 0:03:00]} 2. Nf3 {[%clk 0:03:01]}  Bf5 {[%clk 0:02:59]} 3. e3 {[%clk 0:02:59]}  e6 {[%clk 0:02:59]} 4. Nbd2 {[%clk 0:02:51]}  Nf6 {[%clk 0:02:52]} 5. c4 {[%clk 0:02:51]}  c6 {[%clk 0:02:53]} 6. Nh4 {[%clk 0:02:50]}  Be4 {[%clk 0:02:52]} 7. Be2 {[%clk 0:02:41]}  Bd6 {[%clk 0:02:46]} 8. O-O {[%clk 0:02:40]}  Ng4 {[%clk 0:02:28]} 9. Bxg4 {[%clk 0:02:33]}  Qxh4 {[%clk 0:02:28]} 10. g3 {[%clk 0:02:27]}  Qe7 {[%clk 0:02:28]} 11. cxd5 {[%clk 0:02:18]}  exd5 {[%clk 0:02:22]} 12. Nxe4 {[%clk 0:02:15]}  dxe4 {[%clk 0:02:23]} 13. d5 {[%clk 0:02:09]}  O-O {[%clk 0:02:14]} 14. Qb3 {[%clk 0:01:39]}  c5 {[%clk 0:02:13]} 15. Bd2 {[%clk 0:01:33]}  b6 {[%clk 0:02:09]} 16. a4 {[%clk 0:01:29]}  f5 {[%clk 0:02:08]} 17. Be2 {[%clk 0:01:29]}  Nd7 {[%clk 0:02:08]} 18. a5 {[%clk 0:01:29]}  Ne5 {[%clk 0:01:53]} 19. axb6 {[%clk 0:01:26]}  axb6 {[%clk 0:01:54]} 20. Bc3 {[%clk 0:01:18]}  Nf3+ {[%clk 0:01:24]} 21. Kg2 {[%clk 0:01:14]}  Rab8 {[%clk 0:00:59]} 22. Qb5 {[%clk 0:01:14]}  h5 {[%clk 0:00:51]} 23. Ra4 {[%clk 0:01:05]}  h4 {[%clk 0:00:37]} 24. Rfa1 {[%clk 0:00:44]}  Rf7 {[%clk 0:00:16]} 25. Ra7 {[%clk 0:00:21]}  h3+ {[%clk 0:00:12]} 26. Kxh3 {[%clk 0:00:18]}  Qg5 {[%clk 0:00:13]} 27. Kg2 {[%clk 0:00:15]}  Qh5 {[%clk 0:00:10]} 28. h3 {[%clk 0:00:09]}  Rbf8 {[%clk 0:00:04]} 29. Rxf7 {[%clk 0:00:09]}  Rxf7 {[%clk 0:00:05]} 30. Ra8+ {[%clk 0:00:09]}  Kh7 {[%clk 0:00:05]} 31. Rd8 {[%clk 0:00:09]}  Qg6 {[%clk 0:00:04]} 32. Qc6 {[%clk 0:00:07]}  Nh4+ {[%clk 0:00:03]} 33. Kf1 {[%clk 0:00:07]} 1-0


[Site "https://www.chess.com"]

[Event "Titled Tuesday Blitz January 31 Late 2023"]
[White "Kilic, Eray"]
[Black "Rasulov, Vugar"]
[WhiteFideId "44517173"]
[BlackFideId "13402390"]
[WhiteElo "2414"]
[BlackElo "2523"]
[Result "0-1"]
[Round "04"]
[TimeControl "180+2"]
[Date "2023.01.31"]
[WhiteClock "0:01:03"]
[BlackClock "0:01:07"]

1. e4 {[%clk 0:03:00]}  c5 {[%clk 0:02:53]} 2. Nf3 {[%clk 0:03:01]}  e6 {[%clk 0:02:53]} 3. c3 {[%clk 0:02:58]}  Nf6 {[%clk 0:02:50]} 4. e5 {[%clk 0:02:58]}  Nd5 {[%clk 0:02:51]} 5. d4 {[%clk 0:02:59]}  cxd4 {[%clk 0:02:50]} 6. cxd4 {[%clk 0:03:00]}  d6 {[%clk 0:02:50]} 7. Bc4 {[%clk 0:03:00]}  Nc6 {[%clk 0:02:49]} 8. O-O {[%clk 0:03:00]}  Be7 {[%clk 0:02:49]} 9. Qe2 {[%clk 0:02:59]}  O-O {[%clk 0:02:49]} 10. Rd1 {[%clk 0:03:00]}  Bd7 {[%clk 0:02:49]} 11. Nc3 {[%clk 0:03:00]}  Nxc3 {[%clk 0:02:48]} 12. bxc3 {[%clk 0:03:01]}  Rc8 {[%clk 0:02:45]} 13. Bd3 {[%clk 0:02:57]}  g6 {[%clk 0:02:33]} 14. Bh6 {[%clk 0:02:54]}  Re8 {[%clk 0:02:33]} 15. Qe3 {[%clk 0:02:53]}  Qa5 {[%clk 0:02:29]} 16. Ng5 {[%clk 0:02:40]}  dxe5 {[%clk 0:02:25]} 17. Ne4 {[%clk 0:02:22]}  exd4 {[%clk 0:02:22]} 18. cxd4 {[%clk 0:02:23]}  Nb4 {[%clk 0:02:17]} 19. Be2 {[%clk 0:02:20]}  Nc2 {[%clk 0:02:15]} 20. Qf3 {[%clk 0:02:17]}  Qf5 {[%clk 0:02:08]} 21. Rac1 {[%clk 0:02:16]}  Ba4 {[%clk 0:02:00]} 22. Rd2 {[%clk 0:01:57]}  Nb4 {[%clk 0:01:39]} 23. Nc5 {[%clk 0:01:37]}  Qxf3 {[%clk 0:01:33]} 24. Bxf3 {[%clk 0:01:37]}  Bc6 {[%clk 0:01:34]} 25. Bxc6 {[%clk 0:01:18]}  Rxc6 {[%clk 0:01:34]} 26. Rb1 {[%clk 0:01:18]}  b6 {[%clk 0:01:22]} 27. Ne4 {[%clk 0:01:12]}  Rec8 {[%clk 0:01:19]} 28. g3 {[%clk 0:01:10]}  Nd5 {[%clk 0:01:16]} 29. Kg2 {[%clk 0:01:09]}  Bf8 {[%clk 0:01:11]} 30. Bg5 {[%clk 0:01:06]}  Bg7 {[%clk 0:01:12]} 31. Rb3 {[%clk 0:01:06]}  h6 {[%clk 0:01:12]} 32. Be3 {[%clk 0:01:05]}  Rc2 {[%clk 0:01:12]} 33. Rdd3 {[%clk 0:01:03]}  Rxa2 {[%clk 0:01:11]} 34. Nd6 {[%clk 0:01:03]}  Rcc2 {[%clk 0:01:10]} 35. Kf3 {[%clk 0:01:02]}  Nxe3 {[%clk 0:01:09]} 36. fxe3 {[%clk 0:01:03]}  Rf2+ {[%clk 0:01:07]} 0-1


[Site "https://www.chess.com"]

[Event "Titled Tuesday Blitz January 31 Late 2023"]
[White "Drygalov, Sergey"]
[Black "Riehle, Marco"]
[WhiteFideId "24171743"]
[BlackFideId "12904392"]
[WhiteElo "2547"]
[BlackElo "2368"]
[Result "1-0"]
[Round "04"]
[TimeControl "180+2"]
[Date "2023.01.31"]
[WhiteClock "0:01:41"]
[BlackClock "0:02:01"]

1. d4 {[%clk 0:03:00]}  d5 {[%clk 0:03:00]} 2. c4 {[%clk 0:03:01]}  e6 {[%clk 0:03:00]} 3. Nc3 {[%clk 0:03:01]}  c5 {[%clk 0:03:00]} 4. cxd5 {[%clk 0:03:01]}  cxd4 {[%clk 0:03:01]} 5. Qxd4 {[%clk 0:02:58]}  Nc6 {[%clk 0:03:01]} 6. Qd1 {[%clk 0:02:56]}  exd5 {[%clk 0:03:02]} 7. Qxd5 {[%clk 0:02:56]}  Be6 {[%clk 0:03:02]} 8. Qxd8+ {[%clk 0:02:41]}  Rxd8 {[%clk 0:03:02]} 9. Bd2 {[%clk 0:02:39]}  Nb4 {[%clk 0:03:02]} 10. Rc1 {[%clk 0:02:38]}  Nxa2 {[%clk 0:03:03]} 11. Nxa2 {[%clk 0:02:38]}  Bxa2 {[%clk 0:03:03]} 12. e3 {[%clk 0:02:38]}  a6 {[%clk 0:03:04]} 13. Nf3 {[%clk 0:02:37]}  Nf6 {[%clk 0:03:02]} 14. Nd4 {[%clk 0:02:31]}  Bd5 {[%clk 0:02:56]} 15. Ba5 {[%clk 0:02:30]}  Rb8 {[%clk 0:02:51]} 16. f3 {[%clk 0:02:28]}  Bd6 {[%clk 0:02:39]} 17. e4 {[%clk 0:02:22]}  Be5 {[%clk 0:02:33]} 18. Nf5 {[%clk 0:01:54]}  Bc6 {[%clk 0:02:31]} 19. Nxg7+ {[%clk 0:01:54]}  Kf8 {[%clk 0:02:32]} 20. Nf5 {[%clk 0:01:54]}  Bxb2 {[%clk 0:02:30]} 21. Bb4+ {[%clk 0:01:52]}  Ke8 {[%clk 0:02:22]} 22. Nd6+ {[%clk 0:01:44]}  Kd7 {[%clk 0:02:22]} 23. Rd1 {[%clk 0:01:43]}  Kc7 {[%clk 0:02:02]} 24. Nxf7 {[%clk 0:01:43]}  Rhe8 {[%clk 0:02:02]} 25. Bd6+ {[%clk 0:01:42]}  Kb6 {[%clk 0:02:01]} 26. Rb1 {[%clk 0:01:41]} 1-0


[Site "https://www.chess.com"]

[Event "Titled Tuesday Blitz January 31 Late 2023"]
[White "Mosadeghpour, Masoud"]
[Black "Maximov, Dmitry"]
[WhiteFideId "12519278"]
[BlackFideId "14105659"]
[WhiteElo "2472"]
[BlackElo "2497"]
[Result "1-0"]
[Round "04"]
[TimeControl "180+2"]
[Date "2023.01.31"]
[WhiteClock "0:00:43"]
[BlackClock "0:00:28"]

1. e4 {[%clk 0:03:00]}  c5 {[%clk 0:02:59]} 2. d4 {[%clk 0:02:58]}  cxd4 {[%clk 0:02:59]} 3. c3 {[%clk 0:02:59]}  Nf6 {[%clk 0:02:59]} 4. e5 {[%clk 0:02:59]}  Nd5 {[%clk 0:02:59]} 5. Nf3 {[%clk 0:03:00]}  e6 {[%clk 0:02:59]} 6. cxd4 {[%clk 0:03:00]}  b6 {[%clk 0:02:59]} 7. Bd3 {[%clk 0:02:59]}  Be7 {[%clk 0:02:58]} 8. O-O {[%clk 0:02:59]}  O-O {[%clk 0:02:57]} 9. Nc3 {[%clk 0:02:59]}  Nxc3 {[%clk 0:02:56]} 10. bxc3 {[%clk 0:02:59]}  Bb7 {[%clk 0:02:56]} 11. Qe2 {[%clk 0:02:45]}  d6 {[%clk 0:02:55]} 12. Bf4 {[%clk 0:02:42]}  d5 {[%clk 0:02:44]} 13. h4 {[%clk 0:02:37]}  Nd7 {[%clk 0:02:39]} 14. h5 {[%clk 0:02:34]}  Re8 {[%clk 0:02:38]} 15. Qe3 {[%clk 0:02:31]}  Nf8 {[%clk 0:02:37]} 16. h6 {[%clk 0:02:27]}  g6 {[%clk 0:02:35]} 17. Bg5 {[%clk 0:02:28]}  Rc8 {[%clk 0:02:34]} 18. Rac1 {[%clk 0:02:25]}  Qd7 {[%clk 0:02:30]} 19. Qf4 {[%clk 0:02:20]}  Qd8 {[%clk 0:02:23]} 20. Rfe1 {[%clk 0:02:09]}  Nd7 {[%clk 0:02:23]} 21. Re3 {[%clk 0:02:05]}  a6 {[%clk 0:02:17]} 22. a4 {[%clk 0:02:04]}  Qc7 {[%clk 0:02:07]} 23. Bxe7 {[%clk 0:02:02]}  Rxe7 {[%clk 0:02:07]} 24. Ng5 {[%clk 0:02:00]}  Rf8 {[%clk 0:02:07]} 25. Qh4 {[%clk 0:01:54]}  f5 {[%clk 0:01:51]} 26. exf6 {[%clk 0:01:50]}  Rxf6 {[%clk 0:01:51]} 27. Rce1 {[%clk 0:01:50]}  Qd6 {[%clk 0:01:49]} 28. Qg4 {[%clk 0:01:44]}  Nf8 {[%clk 0:01:47]} 29. Re5 {[%clk 0:01:40]}  Bc8 {[%clk 0:01:37]} 30. c4 {[%clk 0:01:39]}  Qa3 {[%clk 0:01:23]} 31. R5e3 {[%clk 0:01:28]}  dxc4 {[%clk 0:01:19]} 32. Bxc4 {[%clk 0:01:28]}  Qxa4 {[%clk 0:01:15]} 33. Bb3 {[%clk 0:01:24]}  Qb4 {[%clk 0:01:12]} 34. Qg3 {[%clk 0:01:19]}  Qxd4 {[%clk 0:01:06]} 35. Rd1 {[%clk 0:01:16]}  Qf4 {[%clk 0:00:55]} 36. Qxf4 {[%clk 0:01:13]}  Rxf4 {[%clk 0:00:55]} 37. Rd8 {[%clk 0:01:14]}  Bd7 {[%clk 0:00:54]} 38. Nxe6 {[%clk 0:01:09]}  Bxe6 {[%clk 0:00:52]} 39. Bxe6+ {[%clk 0:01:01]}  Kh8 {[%clk 0:00:52]} 40. Bc4 {[%clk 0:00:51]}  Rxe3 {[%clk 0:00:48]} 41. fxe3 {[%clk 0:00:51]}  Rf6 {[%clk 0:00:49]} 42. e4 {[%clk 0:00:50]}  b5 {[%clk 0:00:42]} 43. e5 {[%clk 0:00:50]}  Rf5 {[%clk 0:00:41]} 44. e6 {[%clk 0:00:50]}  Kg8 {[%clk 0:00:33]} 45. e7+ {[%clk 0:00:50]}  bxc4 {[%clk 0:00:34]} 46. e8=Q {[%clk 0:00:50]}  c3 {[%clk 0:00:33]} 47. Qe6+ {[%clk 0:00:49]}  Rf7 {[%clk 0:00:34]} 48. Qc4 {[%clk 0:00:44]}  g5 {[%clk 0:00:30]} 49. Qd5 {[%clk 0:00:43]}  c2 {[%clk 0:00:28]} 50. Rxf8+ {[%clk 0:00:43]} 1-0


[Site "https://www.chess.com"]

[Event "Titled Tuesday Blitz January 31 Late 2023"]
[White "Migot, Tangi"]
[Black "Dubov, Daniil"]
[WhiteFideId "662445"]
[BlackFideId "24126055"]
[WhiteElo "2373"]
[BlackElo "2708"]
[Result "0-1"]
[Round "04"]
[TimeControl "180+2"]
[Date "2023.01.31"]
[WhiteClock "0:00:16"]
[BlackClock "0:00:12"]

1. d4 {[%clk 0:03:00]}  Nf6 {[%clk 0:02:58]} 2. Nd2 {[%clk 0:03:01]}  d5 {[%clk 0:02:58]} 3. Ngf3 {[%clk 0:03:00]}  Bf5 {[%clk 0:02:57]} 4. c4 {[%clk 0:03:00]}  e6 {[%clk 0:02:57]} 5. e3 {[%clk 0:02:59]}  h6 {[%clk 0:02:52]} 6. a3 {[%clk 0:03:00]}  Nbd7 {[%clk 0:02:52]} 7. Be2 {[%clk 0:02:59]}  c6 {[%clk 0:02:49]} 8. O-O {[%clk 0:02:53]}  Bd6 {[%clk 0:02:45]} 9. b4 {[%clk 0:02:53]}  O-O {[%clk 0:02:40]} 10. Bb2 {[%clk 0:02:50]}  a6 {[%clk 0:02:40]} 11. Qb3 {[%clk 0:02:43]}  Bg4 {[%clk 0:02:34]} 12. Rfe1 {[%clk 0:02:34]}  Qb8 {[%clk 0:02:28]} 13. h3 {[%clk 0:02:34]}  Bf5 {[%clk 0:02:25]} 14. a4 {[%clk 0:02:28]}  Ne4 {[%clk 0:02:17]} 15. Nxe4 {[%clk 0:02:23]}  dxe4 {[%clk 0:02:18]} 16. Nd2 {[%clk 0:02:21]}  Qd8 {[%clk 0:02:18]} 17. d5 {[%clk 0:02:10]}  Qg5 {[%clk 0:02:09]} 18. Bf1 {[%clk 0:01:59]}  c5 {[%clk 0:01:53]} 19. f4 {[%clk 0:01:47]}  exf3 {[%clk 0:01:49]} 20. Nxf3 {[%clk 0:01:47]}  Qg6 {[%clk 0:01:43]} 21. e4 {[%clk 0:01:31]}  Bxh3 {[%clk 0:01:12]} 22. Nh4 {[%clk 0:01:31]}  Qg3 {[%clk 0:01:12]} 23. Qxg3 {[%clk 0:01:03]}  Bxg3 {[%clk 0:01:13]} 24. Re3 {[%clk 0:01:04]}  Bxh4 {[%clk 0:01:11]} 25. Rxh3 {[%clk 0:01:04]}  Bg5 {[%clk 0:01:00]} 26. bxc5 {[%clk 0:00:58]}  Nxc5 {[%clk 0:00:58]} 27. Ba3 {[%clk 0:00:56]}  Nxe4 {[%clk 0:00:47]} 28. Bxf8 {[%clk 0:00:46]}  Kxf8 {[%clk 0:00:44]} 29. Rb1 {[%clk 0:00:46]}  Nc5 {[%clk 0:00:42]} 30. Rb6 {[%clk 0:00:37]}  Ke7 {[%clk 0:00:37]} 31. a5 {[%clk 0:00:35]}  Bf4 {[%clk 0:00:32]} 32. Rb1 {[%clk 0:00:25]}  Bc7 {[%clk 0:00:29]} 33. dxe6 {[%clk 0:00:17]}  fxe6 {[%clk 0:00:26]} 34. Rd1 {[%clk 0:00:18]}  Bxa5 {[%clk 0:00:24]} 35. Rg3 {[%clk 0:00:19]}  g5 {[%clk 0:00:19]} 36. Be2 {[%clk 0:00:19]}  Bc7 {[%clk 0:00:16]} 37. Rh3 {[%clk 0:00:19]}  Rh8 {[%clk 0:00:16]} 38. Rf3 {[%clk 0:00:19]}  Be5 {[%clk 0:00:14]} 39. Kf1 {[%clk 0:00:19]}  a5 {[%clk 0:00:14]} 40. g3 {[%clk 0:00:19]}  a4 {[%clk 0:00:14]} 41. Kg2 {[%clk 0:00:20]}  Bb2 {[%clk 0:00:14]} 42. Bd3 {[%clk 0:00:19]}  Rd8 {[%clk 0:00:12]} 43. Bc2 {[%clk 0:00:19]}  Rxd1 {[%clk 0:00:12]} 44. Bxd1 {[%clk 0:00:20]}  a3 {[%clk 0:00:13]} 45. Bb3 {[%clk 0:00:20]}  g4 {[%clk 0:00:12]} 46. Re3 {[%clk 0:00:18]}  Bd4 {[%clk 0:00:12]} 47. Re2 {[%clk 0:00:15]}  Nxb3 {[%clk 0:00:12]} 48. Ra2 {[%clk 0:00:16]}  Bb2 {[%clk 0:00:12]} 0-1


[Site "https://www.chess.com"]

[Event "Titled Tuesday Blitz January 31 Late 2023"]
[White "Abdrlauf, Elham"]
[Black "Yuan, Qingyu"]
[WhiteFideId "1533533"]
[BlackFideId "8609772"]
[WhiteElo "2518"]
[BlackElo "2373"]
[Result "1-0"]
[Round "04"]
[TimeControl "180+2"]
[Date "2023.01.31"]
[WhiteClock "0:02:17"]
[BlackClock "0:00:03"]

1. e4 {[%clk 0:02:56]}  e5 {[%clk 0:03:00]} 2. Nc3 {[%clk 0:02:57]}  Nf6 {[%clk 0:03:00]} 3. d4 {[%clk 0:02:57]}  exd4 {[%clk 0:02:58]} 4. Qxd4 {[%clk 0:02:58]}  Nc6 {[%clk 0:02:58]} 5. Qd3 {[%clk 0:02:59]}  Bb4 {[%clk 0:02:54]} 6. Ne2 {[%clk 0:02:58]}  d5 {[%clk 0:02:45]} 7. a3 {[%clk 0:02:57]}  Bxc3+ {[%clk 0:02:36]} 8. Nxc3 {[%clk 0:02:58]}  dxe4 {[%clk 0:02:29]} 9. Qxd8+ {[%clk 0:02:59]}  Nxd8 {[%clk 0:02:26]} 10. Bg5 {[%clk 0:03:00]}  Bf5 {[%clk 0:02:22]} 11. Bxf6 {[%clk 0:02:59]}  gxf6 {[%clk 0:02:22]} 12. O-O-O {[%clk 0:03:00]}  c6 {[%clk 0:02:14]} 13. Re1 {[%clk 0:03:00]}  Ne6 {[%clk 0:02:11]} 14. Nxe4 {[%clk 0:02:59]}  Bxe4 {[%clk 0:02:11]} 15. Rxe4 {[%clk 0:03:00]}  O-O-O {[%clk 0:02:09]} 16. Bc4 {[%clk 0:03:00]}  Rd6 {[%clk 0:02:02]} 17. Rhe1 {[%clk 0:02:58]}  Kd7 {[%clk 0:02:02]} 18. f4 {[%clk 0:02:44]}  f5 {[%clk 0:00:50]} 19. Re5 {[%clk 0:02:43]}  Rd4 {[%clk 0:00:41]} 20. Rxf5 {[%clk 0:02:28]}  Rxc4 {[%clk 0:00:26]} 21. Rxf7+ {[%clk 0:02:28]}  Kd6 {[%clk 0:00:27]} 22. Rf6 {[%clk 0:02:28]}  Re8 {[%clk 0:00:20]} 23. f5 {[%clk 0:02:28]}  Rf4 {[%clk 0:00:16]} 24. Rfxe6+ {[%clk 0:02:23]}  Rxe6 {[%clk 0:00:16]} 25. Rxe6+ {[%clk 0:02:22]}  Kd7 {[%clk 0:00:10]} 26. Rh6 {[%clk 0:02:22]}  Rf1+ {[%clk 0:00:04]} 27. Kd2 {[%clk 0:02:23]}  Rf2+ {[%clk 0:00:05]} 28. Kd3 {[%clk 0:02:23]}  Rxg2 {[%clk 0:00:05]} 29. Rxh7+ {[%clk 0:02:24]}  Kd6 {[%clk 0:00:06]} 30. Rxb7 {[%clk 0:02:23]}  Rxh2 {[%clk 0:00:06]} 31. Rxa7 {[%clk 0:02:22]}  Rf2 {[%clk 0:00:06]} 32. Rf7 {[%clk 0:02:21]}  Rf4 {[%clk 0:00:06]} 33. b3 {[%clk 0:02:21]}  c5 {[%clk 0:00:04]} 34. a4 {[%clk 0:02:22]}  Kc6 {[%clk 0:00:03]} 35. Kc3 {[%clk 0:02:22]}  Kd6 {[%clk 0:00:03]} 36. a5 {[%clk 0:02:17]}  Kc6 {[%clk 0:00:04]} 37. a6 {[%clk 0:02:17]}  Rxf5 {[%clk 0:00:03]} 38. Rxf5 {[%clk 0:02:17]} 1-0


[Site "https://www.chess.com"]

[Event "Titled Tuesday Blitz January 31 Late 2023"]
[White "Goltsev, Dmitry"]
[Black "Babazada, Khazar"]
[WhiteFideId "24176710"]
[BlackFideId "13413554"]
[WhiteElo "2269"]
[BlackElo "2474"]
[Result "0-1"]
[Round "04"]
[TimeControl "180+2"]
[Date "2023.01.31"]
[WhiteClock "0:01:12"]
[BlackClock "0:01:36"]

1. e4 {[%clk 0:03:00]}  Nf6 {[%clk 0:03:00]} 2. e5 {[%clk 0:03:00]}  Nd5 {[%clk 0:03:00]} 3. c4 {[%clk 0:03:00]}  Nb6 {[%clk 0:03:01]} 4. d4 {[%clk 0:03:01]}  d6 {[%clk 0:03:01]} 5. exd6 {[%clk 0:03:02]}  cxd6 {[%clk 0:03:02]} 6. Nc3 {[%clk 0:03:03]}  g6 {[%clk 0:03:02]} 7. Nf3 {[%clk 0:03:04]}  Bg7 {[%clk 0:03:02]} 8. Be2 {[%clk 0:03:04]}  O-O {[%clk 0:03:01]} 9. O-O {[%clk 0:03:04]}  Bf5 {[%clk 0:03:00]} 10. Be3 {[%clk 0:03:04]}  Nc6 {[%clk 0:02:58]} 11. h3 {[%clk 0:02:57]}  d5 {[%clk 0:02:58]} 12. c5 {[%clk 0:02:57]}  Nc8 {[%clk 0:02:58]} 13. Qb3 {[%clk 0:02:56]}  e6 {[%clk 0:02:56]} 14. Qxb7 {[%clk 0:02:55]}  N8e7 {[%clk 0:02:56]} 15. Qa6 {[%clk 0:02:49]}  Be4 {[%clk 0:02:55]} 16. Rfd1 {[%clk 0:02:47]}  Rb8 {[%clk 0:02:50]} 17. Nb5 {[%clk 0:02:42]}  Qd7 {[%clk 0:02:42]} 18. Ng5 {[%clk 0:02:26]}  Nf5 {[%clk 0:02:39]} 19. Nxe4 {[%clk 0:02:25]}  dxe4 {[%clk 0:02:35]} 20. Bc4 {[%clk 0:02:20]}  Nb4 {[%clk 0:02:33]} 21. Qa4 {[%clk 0:02:18]}  Nd5 {[%clk 0:02:33]} 22. Re1 {[%clk 0:02:14]}  Ndxe3 {[%clk 0:02:30]} 23. fxe3 {[%clk 0:02:15]}  Bh6 {[%clk 0:02:30]} 24. Qxa7 {[%clk 0:01:51]}  Qxa7 {[%clk 0:02:25]} 25. Nxa7 {[%clk 0:01:52]}  Bxe3+ {[%clk 0:02:25]} 26. Kh1 {[%clk 0:01:50]}  Rxb2 {[%clk 0:02:24]} 27. Rab1 {[%clk 0:01:42]}  Rd2 {[%clk 0:02:10]} 28. c6 {[%clk 0:01:40]}  Bxd4 {[%clk 0:02:01]} 29. Nb5 {[%clk 0:01:37]}  Be5 {[%clk 0:02:01]} 30. Rxe4 {[%clk 0:01:35]}  Ng3+ {[%clk 0:02:01]} 31. Kg1 {[%clk 0:01:26]}  Nxe4 {[%clk 0:02:02]} 32. Re1 {[%clk 0:01:24]}  Bg3 {[%clk 0:02:01]} 33. Rxe4 {[%clk 0:01:24]}  Rd1+ {[%clk 0:01:51]} 34. Bf1 {[%clk 0:01:22]}  h5 {[%clk 0:01:49]} 35. h4 {[%clk 0:01:17]}  Rc1 {[%clk 0:01:38]} 36. Nd4 {[%clk 0:01:13]}  Rb8 {[%clk 0:01:34]} 37. Ne2 {[%clk 0:01:13]}  Rxf1+ {[%clk 0:01:34]} 38. Kxf1 {[%clk 0:01:12]}  Rb1+ {[%clk 0:01:35]} 39. Nc1 {[%clk 0:01:12]}  Rxc1+ {[%clk 0:01:36]} 0-1


[Site "https://www.chess.com"]